Workbook

Sheet Sheet 1
B1: Rate Rider Calculation for Account 1536
B3: Please indicate the Rate Rider Recovery Period (in years) | D3: 1
B5: Rate Class | C5: Units | D5: # of Customers | E5: Balance of Account 15361 | F5: Rate Rider for Account 15362
B7: RESIDENTIAL | C7: # of Customers | D7: 325344.75 | E7: =E32 -> -169933.574 | F7: =IF(ISERROR(E7/D7), 0, IF(C7="# of Customers", E7/D7/12/$D$3, E7/D7/$D$3)) -> -0.04352653968 | G7: =IF(C7="", "", IF(C7="# of Customers", "per customer per month", "$/"&C7)) -> per customer per month
B8: GENERAL SERVICE LESS THAN 50 KW | C8: # of Customers | D8: 32401.83333 | E8: -65007.96813 | F8: =IF(ISERROR(E8/D8), 0, IF(C8="# of Customers", E8/D8/12/$D$3, E8/D8/$D$3)) -> -0.1671921037 | G8: per customer per month
B9: GENERAL SERVICE 50 TO 4,999 KW | C9: # of Customers | D9: 4964.666667 | E9: -286476.1123 | F9: =IF(ISERROR(E9/D9), 0, IF(C9="# of Customers", E9/D9/12/$D$3, E9/D9/$D$3)) -> -4.808582522 | G9: per customer per month
B10: LARGE USER | C10: # of Customers | D10: 2 | E10: -4790.681277 | F10: -199.6117199 | G10: per customer per month
B11: UNMETERED SCATTERED LOAD | C11: # of Customers | D11: 2976.25 | E11: -886.9272516 | F11: -0.02483346638 | G11: per customer per month
B12: SENTINEL LIGHTING | C12: # of Customers | D12: 208.5 | E12: -23.66611641 | F12: -0.009458879462 | G12: per customer per month
B13: STREET LIGHTING | C13: # of Connections | D13: 88126.08333 | E13: =E38 -> -2983.560293 | F13: =+E13/D13/12 -> -0.002821298928 | G13: per connection per month
B26: Total | D26: =SUM(D7:D25) -> 454024.0833 | E26: =SUM(E7:E25) -> -530102.4895
A28: NOTES:
A29: 1. | B29: Allocation to Classes | C29: Amount to be allocated: | E29: -530102.4895
B31: Rate Class | C31: 2016 Kwh forecast by Class | D31: % by Class | E31: Total Claim by Class
B32: RESIDENTIAL | C32: 2714896670 | D32: =+C32/$C$39 -> 0.3205673948 | E32: =+D32*$E$29 -> -169933.574
B33: GENERAL SERVICE LESS THAN 50 KW | C33: 1038581794 | D33: =+C33/$C$39 -> 0.1226328294 | E33: =+D33*$E$29 -> -65007.96813
B34: GENERAL SERVICE 50 TO 4,999 KW | C34: 4576806248 | D34: 0.5404164629 | E34: =+D34*$E$29 -> -286476.1123
B35: LARGE USER | C35: 76536992.27 | D35: 0.009037273682 | E35: =+D35*$E$29 -> -4790.681277
B36: UNMETERED SCATTERED LOAD | C36: 14169747.53 | D36: 0.001673124102 | E36: =+D36*$E$29 -> -886.9272516
B37: SENTINEL LIGHTING | C37: 378095.1528 | D37: 4.464441666e-05 | E37: =+D37*$E$29 -> -23.66611641
B38: STREET LIGHTING | C38: 47666024.5 | D38: 0.005628270669 | E38: =+D38*$E$29 -> -2983.560293
C39: =SUM(C32:C38) -> 8469035571 | D39: =SUM(D32:D38) -> 1 | E39: =SUM(E32:E38) -> -530102.4895
A41: 2. | B41: Billing determinant for all classes is based on "# of customers" to mitigate classes that would have a $0.0000 rate rider based on volumetric determinants.
